Workbook

Sheet Sheet1
A1: Date | B1: Last | C1: Open | D1: High | E1: Low | F1: Change % | H1: S&P500 Futures Jun 2013 Historical Prices
A2: 2013-03-11 | B2: 1549.65 | C2: 1542.95 | D2: 1549.65 | E2: 1540.65 | F2: 0.0042 | H2: Source:
A3: 2013-03-10 | B3: 1543.15 | C3: 1542.45 | D3: 1543.95 | E3: 1542.15 | F3: -0.0042 | H3: http://www.investing.com/indices/us-spx-500-futures-historical-data
A4: 2013-03-08 | B4: 1549.65 | C4: 1541.65 | D4: 1552.65 | E4: 1540.45 | F4: 0.005
A5: 2013-03-07 | B5: 1541.95 | C5: 1539.45 | D5: 1545.15 | E5: 1537.65 | F5: 0.0015
A6: 2013-03-06 | B6: 1539.65 | C6: 1538.95 | D6: 1544.65 | E6: 1537.15 | F6: 0.0003
A7: 2013-03-05 | B7: 1539.15 | C7: 1526.95 | D7: 1542.45 | E7: 1524.65 | F7: 0.0082
A8: 2013-03-04 | B8: 1526.65 | C8: 1514.95 | D8: 1527.45 | E8: 1507.15 | F8: 0.0079
A9: 2013-03-03 | B9: 1514.65 | C9: 1514.95 | D9: 1515.45 | E9: 1513.95 | F9: -0.0009
A10: 2013-03-01 | B10: 1515.95 | C10: 1508.75 | D10: 1518.95 | E10: 1499.95 | F10: 0.0048
A11: 2013-02-28 | B11: 1508.65 | C11: 1516.15 | D11: 1524.45 | E11: 1507.45 | F11: -0.0051
A12: 2013-02-27 | B12: 1516.45 | C12: 1492.65 | D12: 1518.95 | E12: 1490.15 | F12: 0.0157
A13: 2013-02-26 | B13: 1492.95 | C13: 1488.15 | D13: 1497.45 | E13: 1483.15 | F13: 0.0034
A14: 2013-02-25 | B14: 1487.95 | C14: 1515.95 | D14: 1524.15 | E14: 1482.15 | F14: -0.0186
A15: 2013-02-24 | B15: 1516.15 | C15: 1514.95 | D15: 1516.15 | E15: 1514.65 | F15: 0.0018
A16: 2013-02-22 | B16: 1513.45 | C16: 1502.95 | D16: 1514.95 | E16: 1502.15 | F16: 0.0072
A17: 2013-02-21 | B17: 1502.65 | C17: 1508.45 | D17: 1509.65 | E17: 1495.45 | F17: -0.004
A18: 2013-02-20 | B18: 1508.65 | C18: 1528.55 | D18: 1529.95 | E18: 1506.95 | F18: -0.0131
A19: 2013-02-19 | B19: 1528.65 | C19: 1516.75 | D19: 1528.95 | E19: 1515.45 | F19: 0.0077
A20: 2013-02-18 | B20: 1516.95 | C20: 1516.95 | D20: 1518.95 | E20: 1515.65 | F20: -0.0001
A21: 2013-02-17 | B21: 1517.15 | C21: 1516.45 | D21: 1517.95 | E21: 1516.15 | F21: 0
A22: 2013-02-15 | B22: 1517.15 | C22: 1518.65 | D22: 1521.65 | E22: 1511.45 | F22: -0.0009
A23: 2013-02-14 | B23: 1518.45 | C23: 1516.05 | D23: 1520.45 | E23: 1510.15 | F23: 0.0015
A24: 2013-02-13 | B24: 1516.15 | C24: 1517.65 | D24: 1521.95 | E24: 1513.15 | F24: -0.0012
A25: 2013-02-12 | B25: 1517.95 | C25: 1512.65 | D25: 1518.95 | E25: 1508.65 | F25: 0.0033
A26: 2013-02-11 | B26: 1512.95 | C26: 1514.45 | D26: 1516.95 | E26: 1509.95 | F26: -0.0008
A27: 2013-02-10 | B27: 1514.15 | C27: 1513.45 | D27: 1514.65 | E27: 1512.65 | F27: 0.0001
A28: 2013-02-08 | B28: 1513.95 | C28: 1504.45 | D28: 1514.65 | E28: 1503.95 | F28: 0.0062
A29: 2013-02-07 | B29: 1504.65 | C29: 1506.15 | D29: 1510.95 | E29: 1494.65 | F29: -0.0012
A30: 2013-02-06 | B30: 1506.45 | C30: 1506.55 | D30: 1510.15 | E30: 1499.15 | F30: -0.0001
A31: 2013-02-05 | B31: 1506.65 | C31: 1493.95 | D31: 1510.95 | E31: 1493.95 | F31: 0.0087
A32: 2013-02-04 | B32: 1493.65 | C32: 1507.15 | D32: 1508.45 | E32: 1490.45 | F32: -0.0088
A33: 2013-02-03 | B33: 1506.95 | C33: 1507.45 | D33: 1507.45 | E33: 1506.45 | F33: -0.0007
A34: 2013-02-01 | B34: 1507.95 | C34: 1497.45 | D34: 1510.15 | E34: 1495.95 | F34: 0.0069
A35: 2013-01-31 | B35: 1497.65 | C35: 1494.45 | D35: 1499.65 | E35: 1492.15 | F35: 0.002
A36: 2013-01-30 | B36: 1494.65 | C36: 1504.45 | D36: 1505.95 | E36: 1493.65 | F36: -0.0063
A37: 2013-01-29 | B37: 1504.15 | C37: 1495.45 | D37: 1505.65 | E37: 1491.15 | F37: 0.006
A38: 2013-01-28 | B38: 1495.15 | C38: 1495.15 | D38: 1499.95 | E38: 1491.45 | F38: -0.0002
A39: 2013-01-27 | B39: 1495.45 | C39: 1495.65 | D39: 1495.65 | E39: 1494.65 | F39: -0.0003
A40: 2013-01-25 | B40: 1495.95 | C40: 1488.45 | D40: 1499.15 | E40: 1486.95 | F40: 0.0049
A41: 2013-01-24 | B41: 1488.65 | C41: 1484.45 | D41: 1497.65 | E41: 1483.45 | F41: 0.0027
A42: 2013-01-23 | B42: 1484.65 | C42: 1489.65 | D42: 1490.95 | E42: 1483.05 | F42: -0.0032
A43: 2013-01-22 | B43: 1489.45 | C43: 1482.45 | D43: 1491.15 | E43: 1475.15 | F43: 0.0046
A44: 2013-01-21 | B44: 1482.65 | C44: 1480.65 | D44: 1483.65 | E44: 1478.65 | F44: 0.0011
A45: 2013-01-20 | B45: 1480.95 | C45: 1479.15 | D45: 1481.15 | E45: 1478.15 | F45: 0.0012
A46: 2013-01-18 | B46: 1479.15 | C46: 1474.45 | D46: 1480.95 | E46: 1470.65 | F46: 0.0031
A47: 2013-01-17 | B47: 1474.65 | C47: 1463.95 | D47: 1480.45 | E47: 1460.65 | F47: 0.0075
A48: 2013-01-16 | B48: 1463.65 | C48: 1466.95 | D48: 1468.95 | E48: 1460.15 | F48: -0.0024
A49: 2013-01-15 | B49: 1467.15 | C49: 1464.95 | D49: 1468.15 | E49: 1457.15 | F49: 0.0017
A50: 2013-01-14 | B50: 1464.65 | C50: 1466.95 | D50: 1471.15 | E50: 1460.65 | F50: -0.0017
A51: 2013-01-13 | B51: 1467.15 | C51: 1466.55 | D51: 1467.15 | E51: 1465.75 | F51: 0.0001
A52: 2013-01-11 | B52: 1466.95 | C52: 1469.65 | D52: 1469.65 | E52: 1462.45 | F52: -0.002
A53: 2013-01-10 | B53: 1469.95 | C53: 1455.45 | D53: 1470.95 | E53: 1454.95 | F53: 0.0102
A54: 2013-01-09 | B54: 1455.15 | C54: 1452.95 | D54: 1459.45 | E54: 1451.95 | F54: 0.0017
A55: 2013-01-08 | B55: 1452.65 | C55: 1455.45 | D55: 1456.95 | E55: 1446.45 | F55: -0.0021
A56: 2013-01-07 | B56: 1455.65 | C56: 1458.95 | D56: 1459.15 | E56: 1450.95 | F56: -0.0024
A57: 2013-01-06 | B57: 1459.15 | C57: 1460.45 | D57: 1460.45 | E57: 1458.45 | F57: -0.0002
A58: 2013-01-04 | B58: 1459.45 | C58: 1452.95 | D58: 1462.95 | E58: 1451.65 | F58: 0.0043
A59: 2013-01-03 | B59: 1453.15 | C59: 1454.65 | D59: 1460.5 | E59: 1450.45 | F59: -0.0009
A60: 2013-01-02 | B60: 1454.45 | C60: 1443.15 | D60: 1457.95 | E60: 1439.15 | F60: 0.022

Sheet Sheet2
A1: Date | B1: Open | C1: High | D1: Low | E1: Close | F1: Volume | G1: Adj Close*
A2: 2013-03-08 | B2: 28.25 | C2: 28.33 | D2: 27.96 | E2: 28 | F2: 37667800 | G2: 28 | I2: Microsoft Historical Stock Prices
A3: 2013-03-07 | B3: 28.11 | C3: 28.28 | D3: 28.01 | E3: 28.14 | F3: 29196700 | G3: 28.14 | I3: Source: Yahoo Finance
A4: 2013-03-06 | B4: 28.21 | C4: 28.23 | D4: 27.78 | E4: 28.09 | F4: 51448500 | G4: 28.09
A5: 2013-03-05 | B5: 28.29 | C5: 28.54 | D5: 28.16 | E5: 28.35 | F5: 41432200 | G5: 28.35
A6: 2013-03-04 | B6: 27.85 | C6: 28.15 | D6: 27.7 | E6: 28.15 | F6: 38157500 | G6: 28.15
A7: 2013-03-01 | B7: 27.72 | C7: 27.98 | D7: 27.52 | E7: 27.95 | F7: 34849700 | G7: 27.95
A8: 2013-02-28 | B8: 27.88 | C8: 27.97 | D8: 27.74 | E8: 27.8 | F8: 35840200 | G8: 27.8
A9: 2013-02-27 | B9: 27.42 | C9: 28 | D9: 27.33 | E9: 27.81 | F9: 36394700 | G9: 27.81
A10: 2013-02-26 | B10: 27.38 | C10: 27.6 | D10: 27.34 | E10: 27.37 | F10: 49923300 | G10: 27.37
A11: 2013-02-25 | B11: 27.97 | C11: 28.05 | D11: 27.37 | E11: 27.37 | F11: 48011800 | G11: 27.37
A12: 2013-02-22 | B12: 27.68 | C12: 27.76 | D12: 27.48 | E12: 27.76 | F12: 31425900 | G12: 27.76
A13: 2013-02-21 | B13: 27.74 | C13: 27.74 | D13: 27.23 | E13: 27.49 | F13: 49078500 | G13: 27.49
A14: 2013-02-20 | B14: 28.13 | C14: 28.2 | D14: 27.83 | E14: 27.87 | F14: 44110200 | G14: 27.87
A15: 2013-02-19 | B15: 27.88 | C15: 28.09 | D15: 27.8 | E15: 28.05 | F15: 38781400 | G15: 28.05
A16: 2013-02-19 | B16: 0.23 Dividend
A17: 2013-02-15 | B17: 28.04 | C17: 28.16 | D17: 27.88 | E17: 28.01 | F17: 49650900 | G17: 27.78
A18: 2013-02-14 | B18: 27.92 | C18: 28.06 | D18: 27.87 | E18: 28.04 | F18: 32663200 | G18: 27.81
A19: 2013-02-13 | B19: 27.93 | C19: 28.11 | D19: 27.88 | E19: 28.03 | F19: 41715600 | G19: 27.8
A20: 2013-02-12 | B20: 27.88 | C20: 28 | D20: 27.75 | E20: 27.88 | F20: 35990900 | G20: 27.65
A21: 2013-02-11 | B21: 27.65 | C21: 27.92 | D21: 27.5 | E21: 27.86 | F21: 32247700 | G21: 27.63
A22: 2013-02-08 | B22: 27.35 | C22: 27.71 | D22: 27.31 | E22: 27.55 | F22: 33318500 | G22: 27.32
A23: 2013-02-07 | B23: 27.35 | C23: 27.39 | D23: 27.1 | E23: 27.28 | F23: 38028300 | G23: 27.06
A24: 2013-02-06 | B24: 27.38 | C24: 27.54 | D24: 27.25 | E24: 27.34 | F24: 41889600 | G24: 27.12
A25: 2013-02-05 | B25: 27.62 | C25: 27.66 | D25: 27.36 | E25: 27.5 | F25: 35410400 | G25: 27.27
A26: 2013-02-04 | B26: 27.87 | C26: 28.02 | D26: 27.42 | E26: 27.44 | F26: 50540000 | G26: 27.21
A27: 2013-02-01 | B27: 27.67 | C27: 28.05 | D27: 27.55 | E27: 27.93 | F27: 55565900 | G27: 27.7
A28: 2013-01-31 | B28: 27.79 | C28: 27.97 | D28: 27.4 | E28: 27.45 | F28: 50530000 | G28: 27.22
A29: 2013-01-30 | B29: 28.01 | C29: 28.19 | D29: 27.76 | E29: 27.85 | F29: 43580500 | G29: 27.62
A30: 2013-01-29 | B30: 27.82 | C30: 28.13 | D30: 27.6 | E30: 28.01 | F30: 49242600 | G30: 27.78
A31: 2013-01-28 | B31: 28.01 | C31: 28.23 | D31: 27.76 | E31: 27.91 | F31: 56056500 | G31: 27.68
A32: 2013-01-25 | B32: 27.58 | C32: 28.23 | D32: 27.39 | E32: 27.88 | F32: 81847700 | G32: 27.65
A33: 2013-01-24 | B33: 27.7 | C33: 28.07 | D33: 27.47 | E33: 27.63 | F33: 101739300 | G33: 27.4
A34: 2013-01-23 | B34: 27.2 | C34: 27.64 | D34: 27.2 | E34: 27.61 | F34: 50387700 | G34: 27.38
A35: 2013-01-22 | B35: 27.3 | C35: 27.45 | D35: 27 | E35: 27.15 | F35: 58650600 | G35: 26.93
A36: 2013-01-18 | B36: 27.1 | C36: 27.29 | D36: 27.04 | E36: 27.25 | F36: 52167700 | G36: 27.03
A37: 2013-01-17 | B37: 27.19 | C37: 27.47 | D37: 27.06 | E37: 27.25 | F37: 51685900 | G37: 27.03
A38: 2013-01-16 | B38: 27.15 | C38: 27.23 | D38: 27.01 | E38: 27.04 | F38: 41077400 | G38: 26.82
A39: 2013-01-15 | B39: 26.83 | C39: 27.29 | D39: 26.83 | E39: 27.21 | F39: 48244500 | G39: 26.99
A40: 2013-01-14 | B40: 26.9 | C40: 27.08 | D40: 26.76 | E40: 26.89 | F40: 48324400 | G40: 26.67
A41: 2013-01-11 | B41: 26.49 | C41: 26.93 | D41: 26.28 | E41: 26.83 | F41: 55512100 | G41: 26.61
A42: 2013-01-10 | B42: 26.65 | C42: 26.98 | D42: 26.29 | E42: 26.46 | F42: 71431300 | G42: 26.24
A43: 2013-01-09 | B43: 26.72 | C43: 26.75 | D43: 26.56 | E43: 26.7 | F43: 49047900 | G43: 26.48
A44: 2013-01-08 | B44: 26.75 | C44: 26.79 | D44: 26.46 | E44: 26.55 | F44: 44703100 | G44: 26.33
A45: 2013-01-07 | B45: 26.77 | C45: 26.88 | D45: 26.64 | E45: 26.69 | F45: 37110400 | G45: 26.47
A46: 2013-01-04 | B46: 27.27 | C46: 27.34 | D46: 26.73 | E46: 26.74 | F46: 52521100 | G46: 26.52
A47: 2013-01-03 | B47: 27.63 | C47: 27.65 | D47: 27.16 | E47: 27.25 | F47: 48294400 | G47: 27.03
A48: 2013-01-02 | B48: 27.25 | C48: 27.73 | D48: 27.15 | E48: 27.62 | F48: 52899300 | G48: 27.39

Sheet Sheet3
A1: Hedge Ratio | B1: 1.42
A2: # Futures shorted | B2: =B1*20000*Sheet2!E48/(250*Sheet1!B60) -> 2.15726357
A3: rounded to | B3: =ROUND(B2,0) -> 2
A4: Portfolio Value
A5: Date | B5: Microsoft SharePrice + Accumulated Dividends | C5: Microsoft Holding Value | D5: Cumulative Change in Futures Price | E5: Short Futures Value | F5: Portfolio Value
A6: 2013-01-02 | B6: =VLOOKUP($A6,Sheet2!$A$2:$G$48,5,FALSE)+IF($A6>=DATE(2013,2,19),0.23,0) -> 27.62 | C6: =20000*B6 -> 552400 | D6: =VLOOKUP($A6,Sheet1!$A$2:$F$60,2,FALSE)-Sheet1!$B$60 -> 0 | E6: =-$B$3*250*D6 -> 0 | F6: =C6+E6 -> 552400
A7: 2013-01-03 | B7: =VLOOKUP($A7,Sheet2!$A$2:$G$48,5,FALSE)+IF($A7>=DATE(2013,2,19),0.23,0) -> 27.25 | C7: =20000*B7 -> 545000 | D7: =VLOOKUP($A7,Sheet1!$A$2:$F$60,2,FALSE)-Sheet1!$B$60 -> -1.3 | E7: =-$B$3*250*D7 -> 650 | F7: =C7+E7 -> 545650
A8: 2013-01-04 | B8: =VLOOKUP($A8,Sheet2!$A$2:$G$48,5,FALSE)+IF($A8>=DATE(2013,2,19),0.23,0) -> 26.74 | C8: 534800 | D8: =VLOOKUP($A8,Sheet1!$A$2:$F$60,2,FALSE)-Sheet1!$B$60 -> 5 | E8: -2500 | F8: 532300
A9: 2013-01-07 | B9: =VLOOKUP($A9,Sheet2!$A$2:$G$48,5,FALSE)+IF($A9>=DATE(2013,2,19),0.23,0) -> 26.69 | C9: 533800 | D9: =VLOOKUP($A9,Sheet1!$A$2:$F$60,2,FALSE)-Sheet1!$B$60 -> 1.2 | E9: -600 | F9: 533200
A10: 2013-01-08 | B10: =VLOOKUP($A10,Sheet2!$A$2:$G$48,5,FALSE)+IF($A10>=DATE(2013,2,19),0.23,0) -> 26.55 | C10: 531000 | D10: =VLOOKUP($A10,Sheet1!$A$2:$F$60,2,FALSE)-Sheet1!$B$60 -> -1.8 | E10: 900 | F10: 531900
A11: 2013-01-09 | B11: =VLOOKUP($A11,Sheet2!$A$2:$G$48,5,FALSE)+IF($A11>=DATE(2013,2,19),0.23,0) -> 26.7 | C11: 534000 | D11: =VLOOKUP($A11,Sheet1!$A$2:$F$60,2,FALSE)-Sheet1!$B$60 -> 0.7 | E11: -350 | F11: 533650
A12: 2013-01-10 | B12: =VLOOKUP($A12,Sheet2!$A$2:$G$48,5,FALSE)+IF($A12>=DATE(2013,2,19),0.23,0) -> 26.46 | C12: 529200 | D12: =VLOOKUP($A12,Sheet1!$A$2:$F$60,2,FALSE)-Sheet1!$B$60 -> 15.5 | E12: -7750 | F12: 521450
A13: 2013-01-11 | B13: =VLOOKUP($A13,Sheet2!$A$2:$G$48,5,FALSE)+IF($A13>=DATE(2013,2,19),0.23,0) -> 26.83 | C13: 536600 | D13: =VLOOKUP($A13,Sheet1!$A$2:$F$60,2,FALSE)-Sheet1!$B$60 -> 12.5 | E13: -6250 | F13: 530350
A14: 2013-01-14 | B14: =VLOOKUP($A14,Sheet2!$A$2:$G$48,5,FALSE)+IF($A14>=DATE(2013,2,19),0.23,0) -> 26.89 | C14: 537800 | D14: =VLOOKUP($A14,Sheet1!$A$2:$F$60,2,FALSE)-Sheet1!$B$60 -> 10.2 | E14: -5100 | F14: 532700
A15: 2013-01-15 | B15: =VLOOKUP($A15,Sheet2!$A$2:$G$48,5,FALSE)+IF($A15>=DATE(2013,2,19),0.23,0) -> 27.21 | C15: 544200 | D15: =VLOOKUP($A15,Sheet1!$A$2:$F$60,2,FALSE)-Sheet1!$B$60 -> 12.7 | E15: -6350 | F15: 537850
A16: 2013-01-16 | B16: =VLOOKUP($A16,Sheet2!$A$2:$G$48,5,FALSE)+IF($A16>=DATE(2013,2,19),0.23,0) -> 27.04 | C16: 540800 | D16: =VLOOKUP($A16,Sheet1!$A$2:$F$60,2,FALSE)-Sheet1!$B$60 -> 9.2 | E16: -4600 | F16: 536200
A17: 2013-01-17 | B17: =VLOOKUP($A17,Sheet2!$A$2:$G$48,5,FALSE)+IF($A17>=DATE(2013,2,19),0.23,0) -> 27.25 | C17: 545000 | D17: =VLOOKUP($A17,Sheet1!$A$2:$F$60,2,FALSE)-Sheet1!$B$60 -> 20.2 | E17: -10100 | F17: 534900
A18: 2013-01-18 | B18: =VLOOKUP($A18,Sheet2!$A$2:$G$48,5,FALSE)+IF($A18>=DATE(2013,2,19),0.23,0) -> 27.25 | C18: 545000 | D18: =VLOOKUP($A18,Sheet1!$A$2:$F$60,2,FALSE)-Sheet1!$B$60 -> 24.7 | E18: -12350 | F18: 532650
A19: 2013-01-22 | B19: =VLOOKUP($A19,Sheet2!$A$2:$G$48,5,FALSE)+IF($A19>=DATE(2013,2,19),0.23,0) -> 27.15 | C19: 543000 | D19: =VLOOKUP($A19,Sheet1!$A$2:$F$60,2,FALSE)-Sheet1!$B$60 -> 35 | E19: -17500 | F19: 525500
A20: 2013-01-23 | B20: =VLOOKUP($A20,Sheet2!$A$2:$G$48,5,FALSE)+IF($A20>=DATE(2013,2,19),0.23,0) -> 27.61 | C20: 552200 | D20: =VLOOKUP($A20,Sheet1!$A$2:$F$60,2,FALSE)-Sheet1!$B$60 -> 30.2 | E20: -15100 | F20: 537100
A21: 2013-01-24 | B21: =VLOOKUP($A21,Sheet2!$A$2:$G$48,5,FALSE)+IF($A21>=DATE(2013,2,19),0.23,0) -> 27.63 | C21: 552600 | D21: =VLOOKUP($A21,Sheet1!$A$2:$F$60,2,FALSE)-Sheet1!$B$60 -> 34.2 | E21: -17100 | F21: 535500
A22: 2013-01-25 | B22: =VLOOKUP($A22,Sheet2!$A$2:$G$48,5,FALSE)+IF($A22>=DATE(2013,2,19),0.23,0) -> 27.88 | C22: 557600 | D22: =VLOOKUP($A22,Sheet1!$A$2:$F$60,2,FALSE)-Sheet1!$B$60 -> 41.5 | E22: -20750 | F22: 536850
A23: 2013-01-28 | B23: =VLOOKUP($A23,Sheet2!$A$2:$G$48,5,FALSE)+IF($A23>=DATE(2013,2,19),0.23,0) -> 27.91 | C23: 558200 | D23: =VLOOKUP($A23,Sheet1!$A$2:$F$60,2,FALSE)-Sheet1!$B$60 -> 40.7 | E23: -20350 | F23: 537850
A24: 2013-01-29 | B24: =VLOOKUP($A24,Sheet2!$A$2:$G$48,5,FALSE)+IF($A24>=DATE(2013,2,19),0.23,0) -> 28.01 | C24: 560200 | D24: =VLOOKUP($A24,Sheet1!$A$2:$F$60,2,FALSE)-Sheet1!$B$60 -> 49.7 | E24: -24850 | F24: 535350
A25: 2013-01-30 | B25: =VLOOKUP($A25,Sheet2!$A$2:$G$48,5,FALSE)+IF($A25>=DATE(2013,2,19),0.23,0) -> 27.85 | C25: 557000 | D25: =VLOOKUP($A25,Sheet1!$A$2:$F$60,2,FALSE)-Sheet1!$B$60 -> 40.2 | E25: -20100 | F25: 536900
A26: 2013-01-31 | B26: =VLOOKUP($A26,Sheet2!$A$2:$G$48,5,FALSE)+IF($A26>=DATE(2013,2,19),0.23,0) -> 27.45 | C26: 549000 | D26: =VLOOKUP($A26,Sheet1!$A$2:$F$60,2,FALSE)-Sheet1!$B$60 -> 43.2 | E26: -21600 | F26: 527400
A27: 2013-02-01 | B27: =VLOOKUP($A27,Sheet2!$A$2:$G$48,5,FALSE)+IF($A27>=DATE(2013,2,19),0.23,0) -> 27.93 | C27: 558600 | D27: =VLOOKUP($A27,Sheet1!$A$2:$F$60,2,FALSE)-Sheet1!$B$60 -> 53.5 | E27: -26750 | F27: 531850
A28: 2013-02-04 | B28: =VLOOKUP($A28,Sheet2!$A$2:$G$48,5,FALSE)+IF($A28>=DATE(2013,2,19),0.23,0) -> 27.44 | C28: 548800 | D28: =VLOOKUP($A28,Sheet1!$A$2:$F$60,2,FALSE)-Sheet1!$B$60 -> 39.2 | E28: -19600 | F28: 529200
A29: 2013-02-05 | B29: =VLOOKUP($A29,Sheet2!$A$2:$G$48,5,FALSE)+IF($A29>=DATE(2013,2,19),0.23,0) -> 27.5 | C29: 550000 | D29: =VLOOKUP($A29,Sheet1!$A$2:$F$60,2,FALSE)-Sheet1!$B$60 -> 52.2 | E29: -26100 | F29: 523900
A30: 2013-02-06 | B30: =VLOOKUP($A30,Sheet2!$A$2:$G$48,5,FALSE)+IF($A30>=DATE(2013,2,19),0.23,0) -> 27.34 | C30: 546800 | D30: =VLOOKUP($A30,Sheet1!$A$2:$F$60,2,FALSE)-Sheet1!$B$60 -> 52 | E30: -26000 | F30: 520800
A31: 2013-02-07 | B31: =VLOOKUP($A31,Sheet2!$A$2:$G$48,5,FALSE)+IF($A31>=DATE(2013,2,19),0.23,0) -> 27.28 | C31: 545600 | D31: =VLOOKUP($A31,Sheet1!$A$2:$F$60,2,FALSE)-Sheet1!$B$60 -> 50.2 | E31: -25100 | F31: 520500
A32: 2013-02-08 | B32: =VLOOKUP($A32,Sheet2!$A$2:$G$48,5,FALSE)+IF($A32>=DATE(2013,2,19),0.23,0) -> 27.55 | C32: 551000 | D32: =VLOOKUP($A32,Sheet1!$A$2:$F$60,2,FALSE)-Sheet1!$B$60 -> 59.5 | E32: -29750 | F32: 521250
A33: 2013-02-11 | B33: =VLOOKUP($A33,Sheet2!$A$2:$G$48,5,FALSE)+IF($A33>=DATE(2013,2,19),0.23,0) -> 27.86 | C33: 557200 | D33: =VLOOKUP($A33,Sheet1!$A$2:$F$60,2,FALSE)-Sheet1!$B$60 -> 58.5 | E33: -29250 | F33: 527950
A34: 2013-02-12 | B34: =VLOOKUP($A34,Sheet2!$A$2:$G$48,5,FALSE)+IF($A34>=DATE(2013,2,19),0.23,0) -> 27.88 | C34: 557600 | D34: =VLOOKUP($A34,Sheet1!$A$2:$F$60,2,FALSE)-Sheet1!$B$60 -> 63.5 | E34: -31750 | F34: 525850
A35: 2013-02-13 | B35: =VLOOKUP($A35,Sheet2!$A$2:$G$48,5,FALSE)+IF($A35>=DATE(2013,2,19),0.23,0) -> 28.03 | C35: 560600 | D35: =VLOOKUP($A35,Sheet1!$A$2:$F$60,2,FALSE)-Sheet1!$B$60 -> 61.7 | E35: -30850 | F35: 529750
A36: 2013-02-14 | B36: =VLOOKUP($A36,Sheet2!$A$2:$G$48,5,FALSE)+IF($A36>=DATE(2013,2,19),0.23,0) -> 28.04 | C36: 560800 | D36: =VLOOKUP($A36,Sheet1!$A$2:$F$60,2,FALSE)-Sheet1!$B$60 -> 64 | E36: -32000 | F36: 528800
A37: 2013-02-15 | B37: =VLOOKUP($A37,Sheet2!$A$2:$G$48,5,FALSE)+IF($A37>=DATE(2013,2,19),0.23,0) -> 28.01 | C37: 560200 | D37: =VLOOKUP($A37,Sheet1!$A$2:$F$60,2,FALSE)-Sheet1!$B$60 -> 62.7 | E37: -31350 | F37: 528850
A38: 2013-02-19 | B38: =VLOOKUP($A38,Sheet2!$A$2:$G$48,5,FALSE)+IF($A38>=DATE(2013,2,19),0.23,0) -> 28.28 | C38: 565600 | D38: =VLOOKUP($A38,Sheet1!$A$2:$F$60,2,FALSE)-Sheet1!$B$60 -> 74.2 | E38: -37100 | F38: 528500
A39: 2013-02-20 | B39: =VLOOKUP($A39,Sheet2!$A$2:$G$48,5,FALSE)+IF($A39>=DATE(2013,2,19),0.23,0) -> 28.1 | C39: 562000 | D39: =VLOOKUP($A39,Sheet1!$A$2:$F$60,2,FALSE)-Sheet1!$B$60 -> 54.2 | E39: -27100 | F39: 534900
A40: 2013-02-21 | B40: =VLOOKUP($A40,Sheet2!$A$2:$G$48,5,FALSE)+IF($A40>=DATE(2013,2,19),0.23,0) -> 27.72 | C40: 554400 | D40: =VLOOKUP($A40,Sheet1!$A$2:$F$60,2,FALSE)-Sheet1!$B$60 -> 48.2 | E40: -24100 | F40: 530300
A41: 2013-02-22 | B41: =VLOOKUP($A41,Sheet2!$A$2:$G$48,5,FALSE)+IF($A41>=DATE(2013,2,19),0.23,0) -> 27.99 | C41: 559800 | D41: =VLOOKUP($A41,Sheet1!$A$2:$F$60,2,FALSE)-Sheet1!$B$60 -> 59 | E41: -29500 | F41: 530300
A42: 2013-02-25 | B42: =VLOOKUP($A42,Sheet2!$A$2:$G$48,5,FALSE)+IF($A42>=DATE(2013,2,19),0.23,0) -> 27.6 | C42: 552000 | D42: =VLOOKUP($A42,Sheet1!$A$2:$F$60,2,FALSE)-Sheet1!$B$60 -> 33.5 | E42: -16750 | F42: 535250
A43: 2013-02-26 | B43: =VLOOKUP($A43,Sheet2!$A$2:$G$48,5,FALSE)+IF($A43>=DATE(2013,2,19),0.23,0) -> 27.6 | C43: 552000 | D43: =VLOOKUP($A43,Sheet1!$A$2:$F$60,2,FALSE)-Sheet1!$B$60 -> 38.5 | E43: -19250 | F43: 532750
A44: 2013-02-27 | B44: =VLOOKUP($A44,Sheet2!$A$2:$G$48,5,FALSE)+IF($A44>=DATE(2013,2,19),0.23,0) -> 28.04 | C44: 560800 | D44: =VLOOKUP($A44,Sheet1!$A$2:$F$60,2,FALSE)-Sheet1!$B$60 -> 62 | E44: -31000 | F44: 529800
A45: 2013-02-28 | B45: =VLOOKUP($A45,Sheet2!$A$2:$G$48,5,FALSE)+IF($A45>=DATE(2013,2,19),0.23,0) -> 28.03 | C45: 560600 | D45: =VLOOKUP($A45,Sheet1!$A$2:$F$60,2,FALSE)-Sheet1!$B$60 -> 54.2 | E45: -27100 | F45: 533500
A46: 2013-03-01 | B46: =VLOOKUP($A46,Sheet2!$A$2:$G$48,5,FALSE)+IF($A46>=DATE(2013,2,19),0.23,0) -> 28.18 | C46: 563600 | D46: =VLOOKUP($A46,Sheet1!$A$2:$F$60,2,FALSE)-Sheet1!$B$60 -> 61.5 | E46: -30750 | F46: 532850
A47: 2013-03-04 | B47: =VLOOKUP($A47,Sheet2!$A$2:$G$48,5,FALSE)+IF($A47>=DATE(2013,2,19),0.23,0) -> 28.38 | C47: 567600 | D47: =VLOOKUP($A47,Sheet1!$A$2:$F$60,2,FALSE)-Sheet1!$B$60 -> 72.2 | E47: -36100 | F47: 531500
A48: 2013-03-05 | B48: =VLOOKUP($A48,Sheet2!$A$2:$G$48,5,FALSE)+IF($A48>=DATE(2013,2,19),0.23,0) -> 28.58 | C48: 571600 | D48: =VLOOKUP($A48,Sheet1!$A$2:$F$60,2,FALSE)-Sheet1!$B$60 -> 84.7 | E48: -42350 | F48: 529250
A49: 2013-03-06 | B49: =VLOOKUP($A49,Sheet2!$A$2:$G$48,5,FALSE)+IF($A49>=DATE(2013,2,19),0.23,0) -> 28.32 | C49: 566400 | D49: =VLOOKUP($A49,Sheet1!$A$2:$F$60,2,FALSE)-Sheet1!$B$60 -> 85.2 | E49: -42600 | F49: 523800
A50: 2013-03-07 | B50: =VLOOKUP($A50,Sheet2!$A$2:$G$48,5,FALSE)+IF($A50>=DATE(2013,2,19),0.23,0) -> 28.37 | C50: 567400 | D50: =VLOOKUP($A50,Sheet1!$A$2:$F$60,2,FALSE)-Sheet1!$B$60 -> 87.5 | E50: -43750 | F50: 523650
A51: 2013-03-08 | B51: =VLOOKUP($A51,Sheet2!$A$2:$G$48,5,FALSE)+IF($A51>=DATE(2013,2,19),0.23,0) -> 28.23 | C51: 564600 | D51: =VLOOKUP($A51,Sheet1!$A$2:$F$60,2,FALSE)-Sheet1!$B$60 -> 95.2 | E51: -47600 | F51: =C51+E51 -> 517000

Sheet Sheet4
A1: Date | B1: Open | C1: High | D1: Low | E1: Close | F1: Volume | G1: Adj Close* | I1: S&P500 Historical Data
A2: 2013-03-08 | B2: 1544.26 | C2: 1552.48 | D2: 1542.94 | E2: 1551.18 | F2: 3652260000 | G2: 1551.18 | I2: Source: Yahoo Finance
A3: 2013-03-07 | B3: 1541.46 | C3: 1545.78 | D3: 1541.46 | E3: 1544.26 | F3: 3634710000 | G3: 1544.26
A4: 2013-03-06 | B4: 1539.79 | C4: 1545.25 | D4: 1538.11 | E4: 1541.46 | F4: 3676890000 | G4: 1541.46
A5: 2013-03-05 | B5: 1525.2 | C5: 1543.47 | D5: 1525.2 | E5: 1539.79 | F5: 3610690000 | G5: 1539.79
A6: 2013-03-04 | B6: 1518.2 | C6: 1525.27 | D6: 1512.29 | E6: 1525.2 | F6: 3414430000 | G6: 1525.2
A7: 2013-03-01 | B7: 1514.68 | C7: 1519.99 | D7: 1501.48 | E7: 1518.2 | F7: 3695610000 | G7: 1518.2
A8: 2013-02-28 | B8: 1515.99 | C8: 1525.34 | D8: 1514.46 | E8: 1514.68 | F8: 3912320000 | G8: 1514.68
A9: 2013-02-27 | B9: 1496.94 | C9: 1520.08 | D9: 1494.88 | E9: 1515.99 | F9: 3551850000 | G9: 1515.99
A10: 2013-02-26 | B10: 1487.85 | C10: 1498.99 | D10: 1485.01 | E10: 1496.94 | F10: 3975280000 | G10: 1496.94
A11: 2013-02-25 | B11: 1515.6 | C11: 1525.84 | D11: 1487.85 | E11: 1487.85 | F11: 4011050000 | G11: 1487.85
A12: 2013-02-22 | B12: 1502.42 | C12: 1515.64 | D12: 1502.42 | E12: 1515.6 | F12: 3419320000 | G12: 1515.6
A13: 2013-02-21 | B13: 1511.95 | C13: 1511.95 | D13: 1497.29 | E13: 1502.42 | F13: 4274600000 | G13: 1502.42
A14: 2013-02-20 | B14: 1530.94 | C14: 1530.94 | D14: 1511.41 | E14: 1511.95 | F14: 4240570000 | G14: 1511.95
A15: 2013-02-19 | B15: 1519.79 | C15: 1530.94 | D15: 1519.79 | E15: 1530.94 | F15: 3748910000 | G15: 1530.94
A16: 2013-02-15 | B16: 1521.38 | C16: 1524.24 | D16: 1514.14 | E16: 1519.79 | F16: 3838510000 | G16: 1519.79
A17: 2013-02-14 | B17: 1520.33 | C17: 1523.14 | D17: 1514.02 | E17: 1521.38 | F17: 3759740000 | G17: 1521.38
A18: 2013-02-13 | B18: 1519.43 | C18: 1524.69 | D18: 1515.93 | E18: 1520.33 | F18: 3385880000 | G18: 1520.33
A19: 2013-02-12 | B19: 1517.01 | C19: 1522.29 | D19: 1515.61 | E19: 1519.43 | F19: 3414370000 | G19: 1519.43
A20: 2013-02-11 | B20: 1517.93 | C20: 1518.31 | D20: 1513.61 | E20: 1517.01 | F20: 2684100000 | G20: 1517.01
A21: 2013-02-08 | B21: 1509.39 | C21: 1518.31 | D21: 1509.39 | E21: 1517.93 | F21: 2986150000 | G21: 1517.93
A22: 2013-02-07 | B22: 1512.12 | C22: 1512.9 | D22: 1498.49 | E22: 1509.39 | F22: 3614580000 | G22: 1509.39
A23: 2013-02-06 | B23: 1511.29 | C23: 1512.53 | D23: 1504.71 | E23: 1512.12 | F23: 3611570000 | G23: 1512.12
A24: 2013-02-05 | B24: 1495.71 | C24: 1514.96 | D24: 1495.71 | E24: 1511.29 | F24: 3618360000 | G24: 1511.29
A25: 2013-02-04 | B25: 1513.17 | C25: 1513.17 | D25: 1495.02 | E25: 1495.71 | F25: 3390000000 | G25: 1495.71
A26: 2013-02-01 | B26: 1498.11 | C26: 1514.41 | D26: 1498.11 | E26: 1513.17 | F26: 3836320000 | G26: 1513.17
A27: 2013-01-31 | B27: 1501.96 | C27: 1504.19 | D27: 1496.76 | E27: 1498.11 | F27: 3999880000 | G27: 1498.11
A28: 2013-01-30 | B28: 1507.84 | C28: 1509.94 | D28: 1500.11 | E28: 1501.96 | F28: 3726810000 | G28: 1501.96
A29: 2013-01-29 | B29: 1500.18 | C29: 1509.35 | D29: 1498.09 | E29: 1507.84 | F29: 3949640000 | G29: 1507.84
A30: 2013-01-28 | B30: 1502.96 | C30: 1503.23 | D30: 1496.33 | E30: 1500.18 | F30: 3388540000 | G30: 1500.18
A31: 2013-01-25 | B31: 1494.82 | C31: 1503.26 | D31: 1494.82 | E31: 1502.96 | F31: 3476290000 | G31: 1502.96
A32: 2013-01-24 | B32: 1494.81 | C32: 1502.27 | D32: 1489.46 | E32: 1494.82 | F32: 3699430000 | G32: 1494.82
A33: 2013-01-23 | B33: 1492.56 | C33: 1496.13 | D33: 1489.9 | E33: 1494.81 | F33: 3552010000 | G33: 1494.81
A34: 2013-01-22 | B34: 1485.98 | C34: 1492.56 | D34: 1481.16 | E34: 1492.56 | F34: 3570950000 | G34: 1492.56
A35: 2013-01-18 | B35: 1480.95 | C35: 1485.98 | D35: 1475.81 | E35: 1485.98 | F35: 3795740000 | G35: 1485.98
A36: 2013-01-17 | B36: 1472.63 | C36: 1485.16 | D36: 1472.63 | E36: 1480.94 | F36: 3706710000 | G36: 1480.94
A37: 2013-01-16 | B37: 1472.33 | C37: 1473.96 | D37: 1467.6 | E37: 1472.63 | F37: 3384080000 | G37: 1472.63
A38: 2013-01-15 | B38: 1470.67 | C38: 1473.31 | D38: 1463.76 | E38: 1472.34 | F38: 3135350000 | G38: 1472.34
A39: 2013-01-14 | B39: 1472.05 | C39: 1472.05 | D39: 1465.69 | E39: 1470.68 | F39: 3003010000 | G39: 1470.68
A40: 2013-01-11 | B40: 1472.12 | C40: 1472.75 | D40: 1467.58 | E40: 1472.05 | F40: 3340650000 | G40: 1472.05
A41: 2013-01-10 | B41: 1461.02 | C41: 1472.3 | D41: 1461.02 | E41: 1472.12 | F41: 4081840000 | G41: 1472.12
A42: 2013-01-09 | B42: 1457.15 | C42: 1464.73 | D42: 1457.15 | E42: 1461.02 | F42: 3674390000 | G42: 1461.02
A43: 2013-01-08 | B43: 1461.89 | C43: 1461.89 | D43: 1451.64 | E43: 1457.15 | F43: 3601600000 | G43: 1457.15
A44: 2013-01-07 | B44: 1466.47 | C44: 1466.47 | D44: 1456.62 | E44: 1461.89 | F44: 3304970000 | G44: 1461.89
A45: 2013-01-04 | B45: 1459.37 | C45: 1467.94 | D45: 1458.99 | E45: 1466.47 | F45: 3424290000 | G45: 1466.47
A46: 2013-01-03 | B46: 1462.42 | C46: 1465.47 | D46: 1455.53 | E46: 1459.37 | F46: 3829730000 | G46: 1459.37
A47: 2013-01-02 | B47: 1426.19 | C47: 1462.43 | D47: 1426.19 | E47: 1462.42 | F47: 4202600000 | G47: 1462.42

Sheet Sheet5
A1: Date | B1: Microsoft Stock | C1: S&P 500 | D1: S&P 500 Futures | E1: Hedged Portfolio | H1: Lastdate | I1: =INDEX(A2:A47,Numdays+1) -> 2013-03-08
A2: 2013-01-02 | B2: =IF(Lastdate>=$A2,Sheet3!B6*100/Sheet3!$B$6,NA()) -> 100 | C2: =IF(Lastdate>=$A2,VLOOKUP($A2,Sheet4!$A$2:$G$47,5,FALSE)*100/Sheet4!$E$47,NA()) -> 100 | D2: =IF(Lastdate>=$A2,VLOOKUP($A2,Sheet1!$A$2:$G$60,2,FALSE)*100/Sheet1!$B$60,NA()) -> 100 | E2: =IF(Lastdate>=$A2,Sheet3!F6*100/Sheet3!$F$6,NA()) -> 100 | H2: Numdays | I2: 45
A3: 2013-01-03 | B3: =IF(Lastdate>=$A3,Sheet3!B7*100/Sheet3!$B$6,NA()) -> 98.66039102 | C3: =IF(Lastdate>=$A3,VLOOKUP($A3,Sheet4!$A$2:$G$47,5,FALSE)*100/Sheet4!$E$47,NA()) -> 99.79144158 | D3: =IF(Lastdate>=$A3,VLOOKUP($A3,Sheet1!$A$2:$G$60,2,FALSE)*100/Sheet1!$B$60,NA()) -> 99.91061913 | E3: =IF(Lastdate>=$A3,Sheet3!F7*100/Sheet3!$F$6,NA()) -> 98.77805938 | H3: Maxdays | I3: =COUNT(A2:A47)-1 -> 45
A4: 2013-01-04 | B4: =IF(Lastdate>=$A4,Sheet3!B8*100/Sheet3!$B$6,NA()) -> 96.81390297 | C4: =IF(Lastdate>=$A4,VLOOKUP($A4,Sheet4!$A$2:$G$47,5,FALSE)*100/Sheet4!$E$47,NA()) -> 100.2769382 | D4: =IF(Lastdate>=$A4,VLOOKUP($A4,Sheet1!$A$2:$G$60,2,FALSE)*100/Sheet1!$B$60,NA()) -> 100.3437726 | E4: =IF(Lastdate>=$A4,Sheet3!F8*100/Sheet3!$F$6,NA()) -> 96.36133237
A5: 2013-01-07 | B5: =IF(Lastdate>=$A5,Sheet3!B9*100/Sheet3!$B$6,NA()) -> 96.63287473 | C5: =IF(Lastdate>=$A5,VLOOKUP($A5,Sheet4!$A$2:$G$47,5,FALSE)*100/Sheet4!$E$47,NA()) -> 99.9637587 | D5: =IF(Lastdate>=$A5,VLOOKUP($A5,Sheet1!$A$2:$G$60,2,FALSE)*100/Sheet1!$B$60,NA()) -> 100.0825054 | E5: =IF(Lastdate>=$A5,Sheet3!F9*100/Sheet3!$F$6,NA()) -> 96.52425778
A6: 2013-01-08 | B6: =IF(Lastdate>=$A6,Sheet3!B10*100/Sheet3!$B$6,NA()) -> 96.12599566 | C6: =IF(Lastdate>=$A6,VLOOKUP($A6,Sheet4!$A$2:$G$47,5,FALSE)*100/Sheet4!$E$47,NA()) -> 99.63963841 | D6: =IF(Lastdate>=$A6,VLOOKUP($A6,Sheet1!$A$2:$G$60,2,FALSE)*100/Sheet1!$B$60,NA()) -> 99.87624188 | E6: =IF(Lastdate>=$A6,Sheet3!F10*100/Sheet3!$F$6,NA()) -> 96.28892107
A7: 2013-01-09 | B7: =IF(Lastdate>=$A7,Sheet3!B11*100/Sheet3!$B$6,NA()) -> 96.66908038 | C7: =IF(Lastdate>=$A7,VLOOKUP($A7,Sheet4!$A$2:$G$47,5,FALSE)*100/Sheet4!$E$47,NA()) -> 99.90426827 | D7: =IF(Lastdate>=$A7,VLOOKUP($A7,Sheet1!$A$2:$G$60,2,FALSE)*100/Sheet1!$B$60,NA()) -> 100.0481282 | E7: =IF(Lastdate>=$A7,Sheet3!F11*100/Sheet3!$F$6,NA()) -> 96.60572049
A8: 2013-01-10 | B8: =IF(Lastdate>=$A8,Sheet3!B12*100/Sheet3!$B$6,NA()) -> 95.80014482 | C8: =IF(Lastdate>=$A8,VLOOKUP($A8,Sheet4!$A$2:$G$47,5,FALSE)*100/Sheet4!$E$47,NA()) -> 100.6632841 | D8: =IF(Lastdate>=$A8,VLOOKUP($A8,Sheet1!$A$2:$G$60,2,FALSE)*100/Sheet1!$B$60,NA()) -> 101.0656949 | E8: =IF(Lastdate>=$A8,Sheet3!F12*100/Sheet3!$F$6,NA()) -> 94.39717596
A9: 2013-01-11 | B9: =IF(Lastdate>=$A9,Sheet3!B13*100/Sheet3!$B$6,NA()) -> 97.1397538 | C9: =IF(Lastdate>=$A9,VLOOKUP($A9,Sheet4!$A$2:$G$47,5,FALSE)*100/Sheet4!$E$47,NA()) -> 100.6584976 | D9: =IF(Lastdate>=$A9,VLOOKUP($A9,Sheet1!$A$2:$G$60,2,FALSE)*100/Sheet1!$B$60,NA()) -> 100.8594314 | E9: =IF(Lastdate>=$A9,Sheet3!F13*100/Sheet3!$F$6,NA()) -> 96.0083273
A10: 2013-01-14 | B10: =IF(Lastdate>=$A10,Sheet3!B14*100/Sheet3!$B$6,NA()) -> 97.35698769 | C10: =IF(Lastdate>=$A10,VLOOKUP($A10,Sheet4!$A$2:$G$47,5,FALSE)*100/Sheet4!$E$47,NA()) -> 100.5648172 | D10: =IF(Lastdate>=$A10,VLOOKUP($A10,Sheet1!$A$2:$G$60,2,FALSE)*100/Sheet1!$B$60,NA()) -> 100.701296 | E10: =IF(Lastdate>=$A10,Sheet3!F14*100/Sheet3!$F$6,NA()) -> 96.43374366
A11: 2013-01-15 | B11: =IF(Lastdate>=$A11,Sheet3!B15*100/Sheet3!$B$6,NA()) -> 98.51556843 | C11: =IF(Lastdate>=$A11,VLOOKUP($A11,Sheet4!$A$2:$G$47,5,FALSE)*100/Sheet4!$E$47,NA()) -> 100.6783277 | D11: =IF(Lastdate>=$A11,VLOOKUP($A11,Sheet1!$A$2:$G$60,2,FALSE)*100/Sheet1!$B$60,NA()) -> 100.8731823 | E11: =IF(Lastdate>=$A11,Sheet3!F15*100/Sheet3!$F$6,NA()) -> 97.3660391
A12: 2013-01-16 | B12: =IF(Lastdate>=$A12,Sheet3!B16*100/Sheet3!$B$6,NA()) -> 97.90007241 | C12: =IF(Lastdate>=$A12,VLOOKUP($A12,Sheet4!$A$2:$G$47,5,FALSE)*100/Sheet4!$E$47,NA()) -> 100.6981578 | D12: =IF(Lastdate>=$A12,VLOOKUP($A12,Sheet1!$A$2:$G$60,2,FALSE)*100/Sheet1!$B$60,NA()) -> 100.6325415 | E12: =IF(Lastdate>=$A12,Sheet3!F16*100/Sheet3!$F$6,NA()) -> 97.06734251
A13: 2013-01-17 | B13: =IF(Lastdate>=$A13,Sheet3!B17*100/Sheet3!$B$6,NA()) -> 98.66039102 | C13: =IF(Lastdate>=$A13,VLOOKUP($A13,Sheet4!$A$2:$G$47,5,FALSE)*100/Sheet4!$E$47,NA()) -> 101.2663941 | D13: =IF(Lastdate>=$A13,VLOOKUP($A13,Sheet1!$A$2:$G$60,2,FALSE)*100/Sheet1!$B$60,NA()) -> 101.3888411 | E13: =IF(Lastdate>=$A13,Sheet3!F17*100/Sheet3!$F$6,NA()) -> 96.83200579
A14: 2013-01-18 | B14: =IF(Lastdate>=$A14,Sheet3!B18*100/Sheet3!$B$6,NA()) -> 98.66039102 | C14: =IF(Lastdate>=$A14,VLOOKUP($A14,Sheet4!$A$2:$G$47,5,FALSE)*100/Sheet4!$E$47,NA()) -> 101.6110283 | D14: =IF(Lastdate>=$A14,VLOOKUP($A14,Sheet1!$A$2:$G$60,2,FALSE)*100/Sheet1!$B$60,NA()) -> 101.6982364 | E14: =IF(Lastdate>=$A14,Sheet3!F18*100/Sheet3!$F$6,NA()) -> 96.42469225
A15: 2013-01-22 | B15: =IF(Lastdate>=$A15,Sheet3!B19*100/Sheet3!$B$6,NA()) -> 98.29833454 | C15: =IF(Lastdate>=$A15,VLOOKUP($A15,Sheet4!$A$2:$G$47,5,FALSE)*100/Sheet4!$E$47,NA()) -> 102.0609674 | D15: =IF(Lastdate>=$A15,VLOOKUP($A15,Sheet1!$A$2:$G$60,2,FALSE)*100/Sheet1!$B$60,NA()) -> 102.4064079 | E15: =IF(Lastdate>=$A15,Sheet3!F19*100/Sheet3!$F$6,NA()) -> 95.13034033
A16: 2013-01-23 | B16: =IF(Lastdate>=$A16,Sheet3!B20*100/Sheet3!$B$6,NA()) -> 99.96379435 | C16: =IF(Lastdate>=$A16,VLOOKUP($A16,Sheet4!$A$2:$G$47,5,FALSE)*100/Sheet4!$E$47,NA()) -> 102.214822 | D16: =IF(Lastdate>=$A16,VLOOKUP($A16,Sheet1!$A$2:$G$60,2,FALSE)*100/Sheet1!$B$60,NA()) -> 102.0763863 | E16: =IF(Lastdate>=$A16,Sheet3!F20*100/Sheet3!$F$6,NA()) -> 97.23026792
A17: 2013-01-24 | B17: =IF(Lastdate>=$A17,Sheet3!B21*100/Sheet3!$B$6,NA()) -> 100.0362056 | C17: =IF(Lastdate>=$A17,VLOOKUP($A17,Sheet4!$A$2:$G$47,5,FALSE)*100/Sheet4!$E$47,NA()) -> 102.2155058 | D17: =IF(Lastdate>=$A17,VLOOKUP($A17,Sheet1!$A$2:$G$60,2,FALSE)*100/Sheet1!$B$60,NA()) -> 102.3514043 | E17: =IF(Lastdate>=$A17,Sheet3!F21*100/Sheet3!$F$6,NA()) -> 96.94062274
A18: 2013-01-25 | B18: =IF(Lastdate>=$A18,Sheet3!B22*100/Sheet3!$B$6,NA()) -> 100.9413469 | C18: =IF(Lastdate>=$A18,VLOOKUP($A18,Sheet4!$A$2:$G$47,5,FALSE)*100/Sheet4!$E$47,NA()) -> 102.7721174 | D18: =IF(Lastdate>=$A18,VLOOKUP($A18,Sheet1!$A$2:$G$60,2,FALSE)*100/Sheet1!$B$60,NA()) -> 102.8533122 | E18: =IF(Lastdate>=$A18,Sheet3!F22*100/Sheet3!$F$6,NA()) -> 97.18501086
A19: 2013-01-28 | B19: =IF(Lastdate>=$A19,Sheet3!B23*100/Sheet3!$B$6,NA()) -> 101.0499638 | C19: =IF(Lastdate>=$A19,VLOOKUP($A19,Sheet4!$A$2:$G$47,5,FALSE)*100/Sheet4!$E$47,NA()) -> 102.5820216 | D19: =IF(Lastdate>=$A19,VLOOKUP($A19,Sheet1!$A$2:$G$60,2,FALSE)*100/Sheet1!$B$60,NA()) -> 102.7983086 | E19: =IF(Lastdate>=$A19,Sheet3!F23*100/Sheet3!$F$6,NA()) -> 97.3660391
A20: 2013-01-29 | B20: =IF(Lastdate>=$A20,Sheet3!B24*100/Sheet3!$B$6,NA()) -> 101.4120203 | C20: =IF(Lastdate>=$A20,VLOOKUP($A20,Sheet4!$A$2:$G$47,5,FALSE)*100/Sheet4!$E$47,NA()) -> 103.1058109 | D20: =IF(Lastdate>=$A20,VLOOKUP($A20,Sheet1!$A$2:$G$60,2,FALSE)*100/Sheet1!$B$60,NA()) -> 103.4170992 | E20: =IF(Lastdate>=$A20,Sheet3!F24*100/Sheet3!$F$6,NA()) -> 96.9134685
A21: 2013-01-30 | B21: =IF(Lastdate>=$A21,Sheet3!B25*100/Sheet3!$B$6,NA()) -> 100.8327299 | C21: =IF(Lastdate>=$A21,VLOOKUP($A21,Sheet4!$A$2:$G$47,5,FALSE)*100/Sheet4!$E$47,NA()) -> 102.7037376 | D21: =IF(Lastdate>=$A21,VLOOKUP($A21,Sheet1!$A$2:$G$60,2,FALSE)*100/Sheet1!$B$60,NA()) -> 102.7639314 | E21: =IF(Lastdate>=$A21,Sheet3!F25*100/Sheet3!$F$6,NA()) -> 97.19406227
A22: 2013-01-31 | B22: =IF(Lastdate>=$A22,Sheet3!B26*100/Sheet3!$B$6,NA()) -> 99.38450398 | C22: =IF(Lastdate>=$A22,VLOOKUP($A22,Sheet4!$A$2:$G$47,5,FALSE)*100/Sheet4!$E$47,NA()) -> 102.4404754 | D22: =IF(Lastdate>=$A22,VLOOKUP($A22,Sheet1!$A$2:$G$60,2,FALSE)*100/Sheet1!$B$60,NA()) -> 102.9701949 | E22: =IF(Lastdate>=$A22,Sheet3!F26*100/Sheet3!$F$6,NA()) -> 95.47429399
A23: 2013-02-01 | B23: =IF(Lastdate>=$A23,Sheet3!B27*100/Sheet3!$B$6,NA()) -> 101.1223751 | C23: =IF(Lastdate>=$A23,VLOOKUP($A23,Sheet4!$A$2:$G$47,5,FALSE)*100/Sheet4!$E$47,NA()) -> 103.4702753 | D23: =IF(Lastdate>=$A23,VLOOKUP($A23,Sheet1!$A$2:$G$60,2,FALSE)*100/Sheet1!$B$60,NA()) -> 103.6783664 | E23: =IF(Lastdate>=$A23,Sheet3!F27*100/Sheet3!$F$6,NA()) -> 96.27986966
A24: 2013-02-04 | B24: =IF(Lastdate>=$A24,Sheet3!B28*100/Sheet3!$B$6,NA()) -> 99.34829833 | C24: =IF(Lastdate>=$A24,VLOOKUP($A24,Sheet4!$A$2:$G$47,5,FALSE)*100/Sheet4!$E$47,NA()) -> 102.2763638 | D24: =IF(Lastdate>=$A24,VLOOKUP($A24,Sheet1!$A$2:$G$60,2,FALSE)*100/Sheet1!$B$60,NA()) -> 102.6951769 | E24: =IF(Lastdate>=$A24,Sheet3!F28*100/Sheet3!$F$6,NA()) -> 95.80014482
A25: 2013-02-05 | B25: =IF(Lastdate>=$A25,Sheet3!B29*100/Sheet3!$B$6,NA()) -> 99.56553222 | C25: =IF(Lastdate>=$A25,VLOOKUP($A25,Sheet4!$A$2:$G$47,5,FALSE)*100/Sheet4!$E$47,NA()) -> 103.3417213 | D25: =IF(Lastdate>=$A25,VLOOKUP($A25,Sheet1!$A$2:$G$60,2,FALSE)*100/Sheet1!$B$60,NA()) -> 103.5889855 | E25: =IF(Lastdate>=$A25,Sheet3!F29*100/Sheet3!$F$6,NA()) -> 94.84069515
A26: 2013-02-06 | B26: =IF(Lastdate>=$A26,Sheet3!B30*100/Sheet3!$B$6,NA()) -> 98.98624185 | C26: =IF(Lastdate>=$A26,VLOOKUP($A26,Sheet4!$A$2:$G$47,5,FALSE)*100/Sheet4!$E$47,NA()) -> 103.3984765 | D26: =IF(Lastdate>=$A26,VLOOKUP($A26,Sheet1!$A$2:$G$60,2,FALSE)*100/Sheet1!$B$60,NA()) -> 103.5752346 | E26: =IF(Lastdate>=$A26,Sheet3!F30*100/Sheet3!$F$6,NA()) -> 94.2795076
A27: 2013-02-07 | B27: =IF(Lastdate>=$A27,Sheet3!B31*100/Sheet3!$B$6,NA()) -> 98.76900797 | C27: =IF(Lastdate>=$A27,VLOOKUP($A27,Sheet4!$A$2:$G$47,5,FALSE)*100/Sheet4!$E$47,NA()) -> 103.2117996 | D27: =IF(Lastdate>=$A27,VLOOKUP($A27,Sheet1!$A$2:$G$60,2,FALSE)*100/Sheet1!$B$60,NA()) -> 103.4514765 | E27: =IF(Lastdate>=$A27,Sheet3!F31*100/Sheet3!$F$6,NA()) -> 94.22519913
A28: 2013-02-08 | B28: =IF(Lastdate>=$A28,Sheet3!B32*100/Sheet3!$B$6,NA()) -> 99.74656046 | C28: =IF(Lastdate>=$A28,VLOOKUP($A28,Sheet4!$A$2:$G$47,5,FALSE)*100/Sheet4!$E$47,NA()) -> 103.7957632 | D28: =IF(Lastdate>=$A28,VLOOKUP($A28,Sheet1!$A$2:$G$60,2,FALSE)*100/Sheet1!$B$60,NA()) -> 104.0908935 | E28: =IF(Lastdate>=$A28,Sheet3!F32*100/Sheet3!$F$6,NA()) -> 94.36097031
A29: 2013-02-11 | B29: =IF(Lastdate>=$A29,Sheet3!B33*100/Sheet3!$B$6,NA()) -> 100.8689356 | C29: =IF(Lastdate>=$A29,VLOOKUP($A29,Sheet4!$A$2:$G$47,5,FALSE)*100/Sheet4!$E$47,NA()) -> 103.7328538 | D29: =IF(Lastdate>=$A29,VLOOKUP($A29,Sheet1!$A$2:$G$60,2,FALSE)*100/Sheet1!$B$60,NA()) -> 104.022139 | E29: =IF(Lastdate>=$A29,Sheet3!F33*100/Sheet3!$F$6,NA()) -> 95.57385952
A30: 2013-02-12 | B30: =IF(Lastdate>=$A30,Sheet3!B34*100/Sheet3!$B$6,NA()) -> 100.9413469 | C30: =IF(Lastdate>=$A30,VLOOKUP($A30,Sheet4!$A$2:$G$47,5,FALSE)*100/Sheet4!$E$47,NA()) -> 103.8983329 | D30: =IF(Lastdate>=$A30,VLOOKUP($A30,Sheet1!$A$2:$G$60,2,FALSE)*100/Sheet1!$B$60,NA()) -> 104.3659115 | E30: =IF(Lastdate>=$A30,Sheet3!F34*100/Sheet3!$F$6,NA()) -> 95.19370022
A31: 2013-02-13 | B31: =IF(Lastdate>=$A31,Sheet3!B35*100/Sheet3!$B$6,NA()) -> 101.4844316 | C31: =IF(Lastdate>=$A31,VLOOKUP($A31,Sheet4!$A$2:$G$47,5,FALSE)*100/Sheet4!$E$47,NA()) -> 103.9598747 | D31: =IF(Lastdate>=$A31,VLOOKUP($A31,Sheet1!$A$2:$G$60,2,FALSE)*100/Sheet1!$B$60,NA()) -> 104.2421534 | E31: =IF(Lastdate>=$A31,Sheet3!F35*100/Sheet3!$F$6,NA()) -> 95.89971035
A32: 2013-02-14 | B32: =IF(Lastdate>=$A32,Sheet3!B36*100/Sheet3!$B$6,NA()) -> 101.5206372 | C32: =IF(Lastdate>=$A32,VLOOKUP($A32,Sheet4!$A$2:$G$47,5,FALSE)*100/Sheet4!$E$47,NA()) -> 104.0316735 | D32: =IF(Lastdate>=$A32,VLOOKUP($A32,Sheet1!$A$2:$G$60,2,FALSE)*100/Sheet1!$B$60,NA()) -> 104.4002888 | E32: =IF(Lastdate>=$A32,Sheet3!F36*100/Sheet3!$F$6,NA()) -> 95.72773353
A33: 2013-02-15 | B33: =IF(Lastdate>=$A33,Sheet3!B37*100/Sheet3!$B$6,NA()) -> 101.4120203 | C33: =IF(Lastdate>=$A33,VLOOKUP($A33,Sheet4!$A$2:$G$47,5,FALSE)*100/Sheet4!$E$47,NA()) -> 103.9229496 | D33: =IF(Lastdate>=$A33,VLOOKUP($A33,Sheet1!$A$2:$G$60,2,FALSE)*100/Sheet1!$B$60,NA()) -> 104.3109079 | E33: =IF(Lastdate>=$A33,Sheet3!F37*100/Sheet3!$F$6,NA()) -> 95.73678494
A34: 2013-02-19 | B34: =IF(Lastdate>=$A34,Sheet3!B38*100/Sheet3!$B$6,NA()) -> 102.3895728 | C34: =IF(Lastdate>=$A34,VLOOKUP($A34,Sheet4!$A$2:$G$47,5,FALSE)*100/Sheet4!$E$47,NA()) -> 104.6853845 | D34: =IF(Lastdate>=$A34,VLOOKUP($A34,Sheet1!$A$2:$G$60,2,FALSE)*100/Sheet1!$B$60,NA()) -> 105.1015848 | E34: =IF(Lastdate>=$A34,Sheet3!F38*100/Sheet3!$F$6,NA()) -> 95.67342505
A35: 2013-02-20 | B35: =IF(Lastdate>=$A35,Sheet3!B39*100/Sheet3!$B$6,NA()) -> 101.7378711 | C35: =IF(Lastdate>=$A35,VLOOKUP($A35,Sheet4!$A$2:$G$47,5,FALSE)*100/Sheet4!$E$47,NA()) -> 103.3868519 | D35: =IF(Lastdate>=$A35,VLOOKUP($A35,Sheet1!$A$2:$G$60,2,FALSE)*100/Sheet1!$B$60,NA()) -> 103.7264946 | E35: =IF(Lastdate>=$A35,Sheet3!F39*100/Sheet3!$F$6,NA()) -> 96.83200579
A36: 2013-02-21 | B36: =IF(Lastdate>=$A36,Sheet3!B40*100/Sheet3!$B$6,NA()) -> 100.3620565 | C36: =IF(Lastdate>=$A36,VLOOKUP($A36,Sheet4!$A$2:$G$47,5,FALSE)*100/Sheet4!$E$47,NA()) -> 102.7351924 | D36: =IF(Lastdate>=$A36,VLOOKUP($A36,Sheet1!$A$2:$G$60,2,FALSE)*100/Sheet1!$B$60,NA()) -> 103.3139675 | E36: =IF(Lastdate>=$A36,Sheet3!F40*100/Sheet3!$F$6,NA()) -> 95.99927589
A37: 2013-02-22 | B37: =IF(Lastdate>=$A37,Sheet3!B41*100/Sheet3!$B$6,NA()) -> 101.339609 | C37: =IF(Lastdate>=$A37,VLOOKUP($A37,Sheet4!$A$2:$G$47,5,FALSE)*100/Sheet4!$E$47,NA()) -> 103.6364382 | D37: =IF(Lastdate>=$A37,VLOOKUP($A37,Sheet1!$A$2:$G$60,2,FALSE)*100/Sheet1!$B$60,NA()) -> 104.0565162 | E37: =IF(Lastdate>=$A37,Sheet3!F41*100/Sheet3!$F$6,NA()) -> 95.99927589
A38: 2013-02-25 | B38: =IF(Lastdate>=$A38,Sheet3!B42*100/Sheet3!$B$6,NA()) -> 99.9275887 | C38: =IF(Lastdate>=$A38,VLOOKUP($A38,Sheet4!$A$2:$G$47,5,FALSE)*100/Sheet4!$E$47,NA()) -> 101.7388985 | D38: =IF(Lastdate>=$A38,VLOOKUP($A38,Sheet1!$A$2:$G$60,2,FALSE)*100/Sheet1!$B$60,NA()) -> 102.3032762 | E38: =IF(Lastdate>=$A38,Sheet3!F42*100/Sheet3!$F$6,NA()) -> 96.89536568
A39: 2013-02-26 | B39: =IF(Lastdate>=$A39,Sheet3!B43*100/Sheet3!$B$6,NA()) -> 99.9275887 | C39: =IF(Lastdate>=$A39,VLOOKUP($A39,Sheet4!$A$2:$G$47,5,FALSE)*100/Sheet4!$E$47,NA()) -> 102.360471 | D39: =IF(Lastdate>=$A39,VLOOKUP($A39,Sheet1!$A$2:$G$60,2,FALSE)*100/Sheet1!$B$60,NA()) -> 102.6470487 | E39: =IF(Lastdate>=$A39,Sheet3!F43*100/Sheet3!$F$6,NA()) -> 96.44279508
A40: 2013-02-27 | B40: =IF(Lastdate>=$A40,Sheet3!B44*100/Sheet3!$B$6,NA()) -> 101.5206372 | C40: =IF(Lastdate>=$A40,VLOOKUP($A40,Sheet4!$A$2:$G$47,5,FALSE)*100/Sheet4!$E$47,NA()) -> 103.6631064 | D40: =IF(Lastdate>=$A40,VLOOKUP($A40,Sheet1!$A$2:$G$60,2,FALSE)*100/Sheet1!$B$60,NA()) -> 104.2627797 | E40: =IF(Lastdate>=$A40,Sheet3!F44*100/Sheet3!$F$6,NA()) -> 95.90876177
A41: 2013-02-28 | B41: =IF(Lastdate>=$A41,Sheet3!B45*100/Sheet3!$B$6,NA()) -> 101.4844316 | C41: =IF(Lastdate>=$A41,VLOOKUP($A41,Sheet4!$A$2:$G$47,5,FALSE)*100/Sheet4!$E$47,NA()) -> 103.5735288 | D41: =IF(Lastdate>=$A41,VLOOKUP($A41,Sheet1!$A$2:$G$60,2,FALSE)*100/Sheet1!$B$60,NA()) -> 103.7264946 | E41: =IF(Lastdate>=$A41,Sheet3!F45*100/Sheet3!$F$6,NA()) -> 96.57856626
A42: 2013-03-01 | B42: =IF(Lastdate>=$A42,Sheet3!B46*100/Sheet3!$B$6,NA()) -> 102.0275163 | C42: =IF(Lastdate>=$A42,VLOOKUP($A42,Sheet4!$A$2:$G$47,5,FALSE)*100/Sheet4!$E$47,NA()) -> 103.8142257 | D42: =IF(Lastdate>=$A42,VLOOKUP($A42,Sheet1!$A$2:$G$60,2,FALSE)*100/Sheet1!$B$60,NA()) -> 104.2284025 | E42: =IF(Lastdate>=$A42,Sheet3!F46*100/Sheet3!$F$6,NA()) -> 96.4608979
A43: 2013-03-04 | B43: =IF(Lastdate>=$A43,Sheet3!B47*100/Sheet3!$B$6,NA()) -> 102.7516293 | C43: =IF(Lastdate>=$A43,VLOOKUP($A43,Sheet4!$A$2:$G$47,5,FALSE)*100/Sheet4!$E$47,NA()) -> 104.2928844 | D43: =IF(Lastdate>=$A43,VLOOKUP($A43,Sheet1!$A$2:$G$60,2,FALSE)*100/Sheet1!$B$60,NA()) -> 104.9640758 | E43: =IF(Lastdate>=$A43,Sheet3!F47*100/Sheet3!$F$6,NA()) -> 96.21650978
A44: 2013-03-05 | B44: =IF(Lastdate>=$A44,Sheet3!B48*100/Sheet3!$B$6,NA()) -> 103.4757422 | C44: =IF(Lastdate>=$A44,VLOOKUP($A44,Sheet4!$A$2:$G$47,5,FALSE)*100/Sheet4!$E$47,NA()) -> 105.2905458 | D44: =IF(Lastdate>=$A44,VLOOKUP($A44,Sheet1!$A$2:$G$60,2,FALSE)*100/Sheet1!$B$60,NA()) -> 105.8235072 | E44: =IF(Lastdate>=$A44,Sheet3!F48*100/Sheet3!$F$6,NA()) -> 95.80919623
A45: 2013-03-06 | B45: =IF(Lastdate>=$A45,Sheet3!B49*100/Sheet3!$B$6,NA()) -> 102.5343954 | C45: =IF(Lastdate>=$A45,VLOOKUP($A45,Sheet4!$A$2:$G$47,5,FALSE)*100/Sheet4!$E$47,NA()) -> 105.4047401 | D45: =IF(Lastdate>=$A45,VLOOKUP($A45,Sheet1!$A$2:$G$60,2,FALSE)*100/Sheet1!$B$60,NA()) -> 105.8578844 | E45: =IF(Lastdate>=$A45,Sheet3!F49*100/Sheet3!$F$6,NA()) -> 94.82259232
A46: 2013-03-07 | B46: =IF(Lastdate>=$A46,Sheet3!B50*100/Sheet3!$B$6,NA()) -> 102.7154236 | C46: =IF(Lastdate>=$A46,VLOOKUP($A46,Sheet4!$A$2:$G$47,5,FALSE)*100/Sheet4!$E$47,NA()) -> 105.5962036 | D46: =IF(Lastdate>=$A46,VLOOKUP($A46,Sheet1!$A$2:$G$60,2,FALSE)*100/Sheet1!$B$60,NA()) -> 106.0160198 | E46: =IF(Lastdate>=$A46,Sheet3!F50*100/Sheet3!$F$6,NA()) -> 94.79543809
A47: 2013-03-08 | B47: =IF(Lastdate>=$A47,Sheet3!B51*100/Sheet3!$B$6,NA()) -> 102.2085445 | C47: =IF(Lastdate>=$A47,VLOOKUP($A47,Sheet4!$A$2:$G$47,5,FALSE)*100/Sheet4!$E$47,NA()) -> 106.0693918 | D47: =IF(Lastdate>=$A47,VLOOKUP($A47,Sheet1!$A$2:$G$60,2,FALSE)*100/Sheet1!$B$60,NA()) -> 106.5454295 | E47: =IF(Lastdate>=$A47,Sheet3!F51*100/Sheet3!$F$6,NA()) -> 93.59160029
